bitfinex-derivatives/quotes_ETHF0:USTF0_20260116
["timestamp","ask_amount","ask_price","bid_price","bid_amount"]
[1768577038975,1.37649438,3302.2,3301.3,3.391]
[1768577039177,0.00359303,3302.3,3301.3,3.391]
[1768577039377,0.14096172,3303.5,3301.5,1.83557874]
[1768577039586,0.14096172,3303.5,3301.1,0.13773293]
[1768577039785,0.14096172,3303.3,3301.2,8.25857874]
[1768577039987,0.14096172,3303.3,3300.9,40.8]
[1768577040284,0.14096172,3302.8,3300.9,40.80390815]
[1768577040475,0.14096172,3302.8,3300.9,0.00390815]
[1768577040671,1.37649438,3302.1,3301.0,3.393]
[1768577041185,1.37649438,3301.7,3300.9,0.00390815]
[1768577041376,1.37649438,3302.1,3300.9,0.00390815]
[1768577041577,0.14452064,3303.3,3301.0,0.15152]
[1768577041883,2.43191859,3303.2,3301.0,0.15152]
[1768577042072,0.00355892,3303.3,3301.4,0.1515]
[1768577042276,0.00355892,3303.3,3301.5,0.15149]
[1768577042484,1.37649438,3303.2,3301.5,0.15149]
[1768577042683,0.00355892,3303.3,3302.0,0.15147]
[1768577042985,0.00355892,3303.3,3302.1,6.423]
[1768577043185,1.37649438,3303.2,3302.1,6.423]
[1768577043386,0.00355892,3303.3,3302.1,6.57447]
[1768577043584,0.00355892,3303.3,3302.2,1.83557874]
[1768577043879,0.00355892,3303.3,3301.4,0.13773293]
[1768577043880,1.37649438,3303.0,3301.4,0.28923293]
[1768577044081,0.00355892,3303.3,3301.4,0.1515]
[1768577044286,0.00355892,3303.3,3301.5,6.422]
[1768577044287,1.37649438,3303.0,3301.5,6.422]
[1768577044480,0.00355892,3303.3,3301.6,1.83557874]
[1768577044676,0.00355892,3303.3,3302.1,1.83557874]
[1768577044876,0.14096172,3304.6,3302.2,0.15146]
[1768577045074,1.0576721,3304.5,3302.2,0.15146]
[1768577045278,2.43416648,3304.4,3302.3,4.42457874]
[1768577045478,0.91671038,3304.3,3302.3,1.83557874]
[1768577045675,1.37649438,3304.1,3302.3,1.83557874]
[1768577045984,0.14328634,3304.1,3302.2,0.15146]
[1768577046191,1.37649438,3303.5,3302.2,1.354]
[1768577046394,1.37649438,3303.4,3302.2,1.354]
[1768577046589,0.14096172,3303.9,3301.7,1.83557874]
[1768577046590,1.37649438,3303.3,3301.7,1.83557874]
[1768577046790,1.37649438,3303.6,3301.8,6.418]
[1768577046995,1.37649438,3303.5,3301.9,40.8]
[1768577047194,0.14096172,3303.9,3302.0,3.388]
[1768577047390,1.37649438,3303.7,3302.0,6.417]
[1768577047592,1.37649438,3303.6,3301.9,40.8]
[1768577047791,1.37649438,3303.6,3302.0,6.419]
[1768577047990,1.37649438,3303.2,3302.0,3.39]
[1768577048293,1.37649438,3303.0,3302.0,3.39]
[1768577048493,1.37649438,3303.2,3302.0,3.39]
[1768577048798,1.37649438,3302.9,3301.5,1.83557874]
[1768577048997,1.37649438,3302.6,3301.5,3.029]
[1768577049193,1.37649438,3302.6,3301.2,0.15151]
[1768577049194,1.37649438,3302.8,3301.3,40.8]
[1768577049391,1.37649438,3303.0,3301.4,6.419]
[1768577049598,2.29468151,3302.9,3301.4,6.419]
[1768577049889,2.29468151,3302.8,3301.2,0.15151]
[1768577050095,1.37649438,3302.9,3301.2,0.15151]
[1768577050301,1.37649438,3302.7,3301.3,2.037]
[1768577050697,1.37649438,3302.3,3301.0,40.8]
[1768577050902,1.37649438,3302.1,3301.0,3.391]
[1768577051290,0.14096172,3302.8,3301.0,3.391]
[1768577051493,0.14096172,3302.8,3301.0,3.54252]
[1768577051791,1.21997694,3302.4,3301.0,3.54252]
[1768577052303,1.21997694,3302.2,3301.0,3.54252]
[1768577052495,1.21997694,3302.4,3301.0,3.54252]
[1768577053001,1.21997694,3302.4,3301.1,6.422]
[1768577053198,1.21997694,3302.2,3301.1,6.422]
[1768577053402,1.21997694,3302.4,3301.1,6.422]
[1768577053799,0.14096172,3302.8,3301.1,6.422]
[1768577053800,1.21997694,3302.2,3301.1,6.422]
[1768577054005,1.21997694,3302.3,3301.2,6.424]
[1768577054302,0.14096172,3302.8,3301.3,3.395]
[1768577054501,1.21997694,3301.9,3301.2,3.395]
[1768577054701,0.14096172,3302.2,3301.2,3.395]
[1768577054901,1.21997694,3301.7,3301.2,3.395]
[1768577055102,1.21997694,3301.6,3301.2,3.395]
[1768577055403,0.00271318,3301.7,3301.2,2.25448798]
[1768577055603,0.00271318,3301.7,3300.9,0.00390815]
[1768577056010,0.00271318,3301.7,3300.5,2.832]
[1768577056505,0.1436749,3301.7,3300.3,3.029]
[1768577056706,1.06118094,3301.6,3299.9,40.8]
[1768577056900,0.14096172,3301.5,3300.0,6.427]
[1768577057099,0.14096172,3301.5,3300.0,3.029]
[1768577057300,0.14096172,3301.5,3299.9,40.80237822]
[1768577057608,0.14096172,3301.4,3300.0,3.399]
[1768577058205,0.14096172,3301.4,3299.9,0.00237822]
[1768577058709,0.14096172,3301.4,3300.0,3.399]
[1768577058900,0.14096172,3301.4,3299.9,0.00237822]
[1768577059101,0.14096172,3301.4,3300.0,3.4]
[1768577059296,0.14096172,3301.3,3299.9,0.00237822]
[1768577059614,1.06048357,3301.2,3299.9,2.87337822]
[1768577059797,0.14096172,3301.0,3299.9,0.00237822]
[1768577061108,1.0599394,3300.9,3299.9,0.00237822]
[1768577061298,0.91897768,3300.8,3299.9,0.00237822]
[1768577061696,0.14096172,3300.9,3299.9,0.00237822]
[1768577061902,0.13438862,3301.6,3299.9,0.00237822]
[1768577062105,0.00271318,3301.7,3300.4,0.15154]
[1768577062410,0.00271318,3301.7,3300.5,6.58254]
[1768577062605,0.13438862,3302.8,3300.5,6.431]
[1768577062811,0.9178451,3302.7,3300.9,0.15152]
[1768577063113,0.13438862,3302.8,3300.9,0.15152]
[1768577063310,0.91796779,3302.7,3301.0,3.401]
[1768577063511,3.03,3303.6,3300.8,3.401]
[1768577063512,0.13438862,3302.5,3300.8,3.401]
[1768577064412,0.00348485,3302.7,3300.8,3.55252]
[1768577064714,1.05279363,3302.6,3300.9,6.43]
[1768577064910,0.91840501,3302.5,3300.8,0.15152]
[1768577065108,0.13438862,3302.4,3300.9,3.399]
[1768577065310,0.13438862,3302.4,3301.0,3.399]
[1768577065709,0.13438862,3302.4,3300.8,0.15152]
[1768577066110,0.00348485,3302.7,3300.9,0.15152]
[1768577066809,0.13438862,3302.5,3300.1,0.00338314]
[1768577067118,1.05322156,3302.4,3300.3,40.95155]
[1768577067309,0.91896362,3302.3,3300.3,40.95155]
[1768577067616,0.13438862,3302.3,3300.4,0.15154]
[1768577068120,0.00348485,3302.7,3300.3,40.80637239]
[1768577068415,0.00348485,3302.7,3300.5,6.429]
[1768577068416,0.91880421,3302.6,3300.5,6.429]
[1768577068616,0.1408198,3302.7,3300.3,40.80637239]
[1768577068816,1.05622102,3302.6,3300.3,40.80637239]
[1768577069116,0.00348485,3302.7,3300.5,0.00715017]
[1768577069313,0.9187813,3302.6,3300.5,0.00715017]
[1768577069514,0.00348485,3302.7,3300.5,0.00715017]
[1768577069705,0.91888493,3302.6,3300.7,0.15153]
[1768577069909,0.1408198,3302.7,3300.7,0.15153]
[1768577070106,0.13733495,3302.5,3300.8,6.433]
[1768577070310,0.13733495,3302.5,3300.7,0.15153]
[1768577070519,0.13733495,3302.3,3300.3,40.8]
[1768577070715,0.13733495,3302.1,3300.4,3.403]
[1768577071420,0.13733495,3302.1,3300.3,3.403]
[1768577071822,0.13733495,3301.9,3300.3,3.404]
[1768577072718,0.13733495,3301.9,3299.9,0.00237822]
[1768577073021,0.13733495,3301.7,3299.9,0.00237822]
[1768577073221,0.13733495,3301.7,3299.9,3.16737822]
[1768577074020,0.13733495,3301.7,3300.0,3.404]
[1768577074415,0.13733495,3301.7,3299.9,3.40637822]
[1768577075012,0.13733495,3301.5,3299.9,0.00237822]
[1768577075521,0.13733495,3302.1,3299.9,0.00237822]
[1768577075713,0.13733495,3302.1,3300.0,0.00868523]
[1768577075915,0.1408198,3302.7,3300.7,0.15153]
[1768577076114,0.91931824,3302.6,3300.8,3.403]
[1768577076419,0.91931824,3302.5,3300.8,3.403]
[1768577076608,0.1408198,3302.7,3300.8,3.403]
[1768577076609,0.91931824,3302.4,3300.8,3.403]
[1768577076813,0.1408198,3302.7,3300.8,3.403]
[1768577077009,0.91960416,3302.6,3300.8,3.55452]
[1768577077216,0.1408198,3302.7,3301.0,0.15152]
[1768577077412,0.1408198,3302.7,3300.5,0.00794825]
[1768577077413,0.13733495,3302.3,3300.3,0.15155]
[1768577077617,0.13733495,3302.1,3299.9,0.00237822]
[1768577077813,0.13733495,3301.9,3299.9,0.00237822]
[1768577078027,0.13733495,3301.7,3299.9,0.00237822]
[1768577078329,0.00348485,3302.7,3299.9,0.00237822]
[1768577078330,0.13733495,3301.5,3299.9,0.00237822]
[1768577080026,0.13733495,3301.3,3299.9,0.00237822]
[1768577080827,0.13733495,3301.1,3299.9,0.00237822]
[1768577081023,2.14855378,3302.1,3299.9,0.00237822]
[1768577081218,0.13733495,3301.7,3299.9,0.00237822]
[1768577081414,0.13733495,3301.5,3299.9,0.00237822]
[1768577081622,0.13733495,3301.3,3299.9,0.00237822]
[1768577081929,1.05717173,3301.2,3299.9,0.00237822]
[1768577082130,0.13733495,3301.1,3299.9,0.00237822]
[1768577082925,0.13733495,3300.9,3299.1,3.403]
[1768577083235,0.13733495,3300.9,3299.0,3.403]
[1768577083521,0.13733495,3300.9,3299.0,44.203]
[1768577083722,0.13733495,3300.7,3299.0,44.203]
[1768577083919,0.13733495,3300.7,3298.6,0.15163]
[1768577084126,0.13733495,3300.5,3298.0,0.15165]
[1768577084323,0.13733495,3300.3,3298.0,0.15165]
[1768577084522,0.13733495,3300.1,3298.1,40.8]
[1768577084724,0.91876334,3300.0,3298.1,40.8]
[1768577085023,0.14107251,3300.0,3298.1,40.80325093]
[1768577086027,0.14107251,3300.0,3298.0,3.55565]
[1768577086028,0.13733495,3299.5,3297.2,0.78347603]
[1768577086231,0.13733495,3299.3,3297.2,0.78347603]
[1768577086529,0.13733495,3299.3,3297.4,40.957745]
[1768577087027,0.13733495,3299.3,3297.4,0.00931261]
[1768577087225,1.83526151,3299.4,3297.4,0.00931261]
[1768577087226,0.13733495,3299.1,3297.4,0.00931261]
[1768577087426,0.13733495,3298.9,3297.4,0.00931261]
[1768577088425,0.13733495,3298.8,3297.4,0.00931261]
[1768577088927,0.13733495,3298.8,3296.4,0.15173]
[1768577089132,0.13733495,3298.6,3296.4,0.15173]
[1768577090028,0.13733495,3299.3,3297.0,0.1517]
[1768577090221,0.13733495,3299.1,3297.0,0.1517]
[1768577090423,0.13733495,3298.6,3296.4,0.00377376]
[1768577090619,0.13733495,3298.5,3296.4,0.00377376]
[1768577091126,0.13733495,3298.5,3296.4,0.15550376]
[1768577091623,0.13733495,3298.5,3296.5,0.17777431]
[1768577092024,0.13643876,3299.0,3296.5,0.17777431]
[1768577092224,0.13643876,3298.9,3296.5,0.15172]
[1768577092628,0.13643876,3298.8,3296.5,0.15172]
[1768577092825,0.13643876,3298.8,3296.6,40.8]
[1768577093024,0.13643876,3298.0,3296.4,0.00377376]
[1768577093844,0.28809876,3298.0,3296.4,0.00377376]
[1768577094138,0.13643876,3297.9,3296.4,0.00377376]
[1768577094927,0.13643876,3297.8,3295.7,0.15176]
[1768577095838,0.13643876,3297.8,3295.7,0.15440257]
[1768577096037,0.13643876,3297.8,3295.7,0.02696983]
[1768577097442,0.13643876,3297.8,3296.0,0.15174]
[1768577097934,0.13643876,3298.3,3296.0,0.15174]
[1768577099440,0.13643876,3298.3,3296.3,0.15173]
[1768577100029,3.18461,3298.9,3295.7,0.00264257]
[1768577100030,0.13643876,3299.0,3296.4,0.02517237]
[1768577100234,0.14017632,3300.0,3297.8,0.17683237]
[1768577100434,0.14017632,3300.0,3297.9,3.682]
[1768577100746,0.14017632,3300.0,3297.9,4.542]
[1768577101339,0.15158,3299.6,3297.3,3.033]
[1768577101642,0.13643876,3299.5,3297.6,0.15167]
[1768577102044,0.13643876,3299.5,3297.7,0.15167]
[1768577102237,0.13643876,3299.5,3297.9,0.15166]
[1768577102439,0.00373756,3300.0,3298.2,0.15164]
[1768577102645,0.14017632,3300.0,3298.2,0.15503632]
[1768577102939,0.14017632,3300.0,3298.2,0.00339632]
[1768577103841,0.13643876,3299.8,3298.2,0.00339632]
[1768577104239,0.13643876,3299.5,3296.9,3.1847]
[1768577104444,0.13643876,3298.4,3296.3,0.15173]
[1768577104746,0.13643876,3298.4,3295.8,0.02909901]
[1768577104747,0.13643876,3298.0,3295.8,0.15176]
[1768577105356,0.13643876,3298.0,3295.8,0.00219989]
[1768577105563,0.13643876,3298.8,3296.7,0.15171]
[1768577105769,0.13643876,3298.8,3297.1,0.15169]
[1768577105956,0.13643876,3298.8,3297.2,0.15169]
[1768577106468,0.13643876,3298.8,3296.8,3.033]
[1768577107156,0.13643876,3298.8,3297.2,0.15169]
[1768577107363,0.13643876,3299.5,3297.4,0.15168]
[1768577107964,0.13643876,3299.5,3297.1,0.02713395]
[1768577108163,0.13643876,3299.5,3297.0,0.1517]
[1768577108365,0.13643876,3299.3,3297.2,0.02430326]
[1768577108560,0.13643876,3299.3,3297.5,0.15168]
[1768577109067,0.13643876,3299.3,3297.6,40.8]
[1768577109462,0.13643876,3299.1,3297.6,40.8]
[1768577109766,0.13643876,3299.7,3297.4,1.85854216]
[1768577110065,0.13643876,3299.7,3297.9,0.15166]
[1768577110366,0.00373756,3300.0,3298.4,0.15163]
[1768577110670,0.00373756,3300.0,3298.4,0.00379087]
[1768577111465,0.00373756,3300.0,3298.7,0.15162]
[1768577112156,0.00373756,3300.0,3298.8,3.033]
[1768577112363,0.006058,3301.4,3299.0,1.83794956]
[1768577112665,0.91616999,3301.3,3299.5,1.83794956]
[1768577112860,0.13643876,3300.8,3298.8,0.15161]
[1768577113059,1.83794956,3300.9,3298.4,0.00379087]
[1768577113060,0.13643876,3300.6,3298.4,0.00379087]
[1768577113260,0.13643876,3300.4,3298.4,3.03679087]
[1768577113461,0.91621483,3300.3,3298.4,3.03679087]
[1768577114277,0.00367139,3300.4,3298.5,1.83794956]
[1768577114570,0.00367139,3300.4,3299.0,1.83794956]
[1768577114773,0.006058,3301.4,3299.1,0.1671104]
[1768577114968,0.91645037,3301.3,3299.3,0.15159]
[1768577115162,0.006058,3301.4,3299.3,0.15159]
[1768577115560,0.006058,3301.4,3299.4,40.8]
[1768577115764,0.00835124,3301.4,3299.4,40.8]
[1768577115969,0.13643876,3301.2,3299.4,40.8]
[1768577116369,0.13643876,3301.0,3299.4,40.8]
[1768577117271,0.91492159,3300.9,3298.8,1.85336211]
[1768577117475,0.14479,3301.4,3299.3,1.83794956]
[1768577117677,1.05117616,3301.3,3299.0,40.96702255]
[1768577117875,1.05117616,3301.2,3299.0,40.96702255]
[1768577118179,1.8463008,3301.4,3299.0,40.96702255]
[1768577118180,0.91475144,3301.1,3299.0,47.227]
[1768577118383,0.00835124,3301.4,3299.5,0.15158]
[1768577118682,0.00835124,3301.4,3299.3,1.83794956]
[1768577118683,0.00835124,3301.4,3299.6,0.15158]
[1768577118885,0.00835124,3301.4,3299.7,0.15158]
[1768577119175,0.00835124,3301.4,3299.4,0.01537612]
[1768577119176,0.00835124,3301.4,3299.8,1.98951956]
[1768577119382,0.00835124,3301.4,3299.9,0.15157]
[1768577119679,0.13643876,3302.4,3300.3,1.83794956]
[1768577119883,0.13643876,3302.4,3300.4,6.427]
[1768577120576,0.13643876,3302.9,3300.5,0.00722632]
[1768577120779,0.13643876,3302.7,3300.4,6.57854]
[1768577121874,0.13364243,3302.4,3300.4,0.15154]
[1768577122278,0.13364243,3301.9,3299.6,0.15158]
[1768577122974,0.13364243,3301.9,3299.7,0.15158]
[1768577123377,0.13364243,3301.9,3299.8,0.15157]
[1768577123682,0.13364243,3302.5,3300.6,1.83794956]
[1768577124087,0.13364243,3302.5,3300.7,40.8]
[1768577124478,0.13364243,3302.4,3300.7,40.8]
[1768577124670,0.13364243,3302.4,3300.3,6.57455]
[1768577124877,0.13364243,3301.9,3299.7,5.943]
[1768577125183,6.49,3302.3,3300.1,0.15156]
[1768577125372,6.49,3302.3,3300.2,1.83794956]
[1768577125568,6.49,3302.3,3300.2,1.98949956]
[1768577127475,6.62364243,3302.3,3300.2,1.98949956]
[1768577127986,0.13364243,3302.2,3300.2,0.15155]
[1768577130380,0.13364243,3302.2,3299.8,40.80668262]
[1768577130381,0.13364243,3302.2,3299.8,40.8]
[1768577130585,0.1324594,3301.9,3299.8,40.8]
[1768577130976,0.1324594,3301.7,3299.8,40.8]
[1768577131172,0.1324594,3301.6,3299.7,3.031]
[1768577131375,0.1324594,3301.4,3299.7,3.031]
[1768577131573,0.1324594,3301.3,3298.9,0.15161]
[1768577131784,0.2839694,3301.3,3299.0,40.8]
[1768577132084,0.1324594,3301.2,3299.0,40.8]
[1768577133087,0.1324594,3301.8,3299.2,0.00660943]
[1768577133274,1.83794956,3301.4,3299.6,0.15158]
[1768577133479,0.1324594,3301.3,3299.6,0.15158]
[1768577133882,0.1324594,3301.3,3299.0,40.8]
[1768577134083,0.1324594,3301.2,3299.0,40.95161]
[1768577134687,2.68143114,3302.5,3298.4,2.08029782]
[1768577134688,0.1324594,3300.3,3298.4,0.00379087]
[1768577134882,0.91410923,3300.2,3298.4,0.00379087]
[1768577135183,1.04771759,3300.1,3298.4,0.00379087]
[1768577135383,0.1324594,3300.1,3298.4,0.00379087]
[1768577135981,0.1324594,3299.8,3298.4,0.00379087]
[1768577137186,0.1324594,3299.3,3297.4,0.006065]
[1768577138093,0.1324594,3299.3,3297.4,0.00851775]
[1768577138684,0.1324594,3299.0,3297.4,0.00851775]
[1768577139096,4.38043114,3300.4,3297.4,0.00851775]
[1768577139097,0.1324594,3298.5,3297.4,0.00851775]
[1768577139392,0.1324594,3298.5,3296.1,1.83794956]
[1768577139393,0.1324594,3298.5,3296.0,0.25155309]
[1768577139701,0.1324594,3298.0,3295.8,0.836]
[1768577139997,0.1324594,3297.9,3295.8,0.836]
[1768577140189,0.1324594,3297.9,3295.8,0.98775]
[1768577140380,0.13475975,3297.9,3295.8,0.98775]
[1768577140581,0.13475975,3297.9,3295.8,0.99054274]
[1768577141794,0.13475975,3297.9,3295.8,1.01056408]
[1768577142187,0.13475975,3297.9,3295.9,40.8]
[1768577142491,0.00230035,3297.9,3296.1,0.15174]
[1768577142994,0.00230035,3297.9,3296.2,0.02002133]
[1768577143497,0.00230035,3297.9,3296.1,0.15174]
[1768577143795,1.97040896,3297.7,3295.8,0.00279274]
[1768577144296,0.1324594,3297.7,3295.8,0.00279274]
[1768577144688,0.00230035,3297.9,3295.8,0.00279274]
[1768577144893,0.00230035,3297.9,3295.9,0.02003156]
[1768577145098,0.13475975,3297.9,3295.8,0.00279274]
[1768577146289,0.13475975,3297.9,3295.9,0.02005384]
[1768577147589,0.13475975,3297.9,3295.9,0.17180384]
[1768577147792,0.13475975,3297.9,3296.1,0.15174]
[1768577148298,0.00230035,3297.9,3296.1,0.17179475]
[1768577149095,0.00230035,3297.9,3296.1,0.15174]
[1768577149304,0.13475975,3297.9,3296.1,0.15174]
[1768577149594,0.13475975,3297.9,3296.2,40.8]
[1768577150589,0.13475975,3297.9,3295.8,3.03579274]
[1768577151301,0.13604625,3297.5,3295.8,0.00279274]
[1768577153798,6.49,3297.8,3295.8,0.00279274]
[1768577153999,6.49,3297.8,3295.9,0.15175]
[1768577154304,6.62604625,3297.8,3295.9,0.15175]
[1768577154909,0.13604625,3297.7,3295.9,0.15175]
[1768577156400,0.13604625,3297.6,3295.8,0.00279274]
[1768577158702,0.13604625,3297.6,3296.0,0.15175]
[1768577159404,0.13604625,3297.6,3295.8,0.00279274]
[1768577159405,0.13604625,3297.6,3296.1,0.15174]
[1768577159703,6.62604625,3297.8,3296.1,0.15174]
[1768577159907,0.13604625,3297.7,3295.8,0.00279274]
[1768577160108,0.13604625,3297.4,3295.8,0.00279274]
[1768577160503,6.49,3297.8,3295.9,0.15175]
[1768577161310,0.13604625,3297.7,3295.9,0.15175]
[1768577161500,0.13604625,3297.4,3295.8,0.00279274]
[1768577161705,0.13604625,3297.2,3295.8,0.00279274]
[1768577162305,0.91240038,3297.1,3295.8,0.00279274]
[1768577162499,0.13604625,3297.2,3295.8,0.00279274]
[1768577162711,0.91241609,3297.1,3295.8,0.00279274]
[1768577162910,0.13604625,3297.2,3295.8,0.00279274]
[1768577163208,0.13604625,3297.0,3295.8,0.00279274]
[1768577163424,0.91266888,3296.9,3295.8,0.00279274]
[1768577163902,0.13604625,3297.0,3295.8,0.00279274]
[1768577164414,0.9160129,3296.9,3295.8,0.00279274]
[1768577164612,0.9160129,3296.8,3295.8,0.00279274]
[1768577164914,0.13604625,3297.0,3295.8,0.00279274]
[1768577165104,0.91643255,3296.9,3295.8,0.00279274]
[1768577165302,1.0524788,3296.8,3295.0,0.39340342]
[1768577165611,0.91643255,3296.7,3295.3,3.411]
[1768577165811,1.0524788,3296.7,3295.3,3.411]
[1768577166008,1.83794956,3297.0,3295.1,40.8]
[1768577166009,0.13604625,3296.5,3295.1,40.8]
[1768577166312,0.13604625,3296.3,3295.1,0.00345478]
[1768577166507,0.91643255,3296.2,3295.1,0.00345478]
[1768577166713,0.13604625,3296.9,3295.1,0.00345478]
[1768577166913,0.91775371,3296.8,3295.1,0.00345478]
[1768577167108,0.91775371,3296.7,3295.1,0.00345478]
[1768577167308,0.91775371,3296.6,3295.1,0.00345478]
[1768577167511,0.13604625,3296.9,3295.1,0.00345478]
[1768577167808,0.91832961,3296.8,3295.2,0.15178]
[1768577168005,0.91832961,3296.7,3295.2,0.15178]
[1768577168210,0.91832961,3296.6,3295.2,0.15178]
[1768577168414,0.91832961,3296.5,3295.2,0.15178]
[1768577168615,0.13604625,3296.9,3295.2,0.15178]
[1768577168805,0.91925138,3296.8,3295.2,0.15178]
[1768577169018,0.91925138,3296.7,3295.3,1.98972956]
[1768577169213,0.91925138,3296.6,3295.3,1.98972956]
[1768577169406,0.91925138,3296.5,3295.3,1.98972956]
[1768577169612,2.28460003,3297.4,3295.3,1.98972956]
[1768577169913,0.91983444,3297.3,3295.3,1.98972956]
[1768577170115,0.91983444,3297.2,3295.3,1.98972956]
[1768577170413,0.13604625,3296.8,3295.1,0.00345478]
[1768577170619,0.13604625,3296.5,3295.1,0.00345478]
[1768577170818,0.13604625,3296.3,3295.1,0.00345478]
[1768577171019,0.91983444,3296.2,3295.1,0.00345478]
[1768577171214,0.91983444,3296.1,3295.1,0.00345478]
[1768577171420,0.13604625,3295.9,3293.8,3.416]
[1768577171622,0.13604625,3295.7,3293.8,3.416]
[1768577171810,0.91983444,3295.6,3294.0,40.8]
[1768577172011,0.91983444,3295.5,3294.0,40.8]
[1768577172211,0.91983444,3295.4,3294.0,40.8]
[1768577172408,0.00221872,3295.5,3294.0,40.95409152]
[1768577172618,0.91858951,3295.4,3294.0,40.95409152]
[1768577172816,0.00221872,3295.5,3294.0,40.95409152]
[1768577173018,0.91864249,3295.4,3294.0,40.95409152]
[1768577173211,0.9186212,3295.3,3294.0,0.00225152]
[1768577173411,0.9186212,3295.2,3294.0,0.00225152]
[1768577173618,0.13826497,3295.5,3294.0,0.00225152]
[1768577173811,0.91799518,3295.4,3294.0,0.00225152]
[1768577174016,1.05404143,3295.3,3294.0,0.00225152]
[1768577174322,0.91799518,3295.2,3294.0,0.00225152]
[1768577174516,0.13604625,3295.3,3294.0,0.00225152]
[1768577174718,0.91742753,3295.2,3294.0,0.00225152]
[1768577175021,0.13604625,3295.3,3294.0,0.00225152]
[1768577175223,0.91740574,3295.2,3294.0,0.00225152]
[1768577175408,0.13604625,3295.3,3294.0,0.00225152]
[1768577175612,0.00221872,3295.5,3294.5,0.15181]
[1768577176622,0.13604625,3296.4,3294.0,0.00225152]
[1768577176813,0.13604625,3296.2,3294.0,0.00225152]
[1768577177015,1.05336579,3296.1,3294.2,0.15183]
[1768577177212,0.13604625,3295.9,3294.0,0.00225152]
[1768577177411,1.05336579,3295.8,3294.0,0.00225152]
[1768577177712,1.05336579,3295.7,3294.0,0.00225152]
[1768577178019,0.13604625,3297.1,3295.3,0.15178]
[1768577178219,0.13604625,3297.7,3295.5,0.15177]
[1768577178521,0.13604625,3297.7,3295.4,3.422]
[1768577178709,0.15168,3297.6,3295.4,3.422]
[1768577178908,0.13604625,3297.0,3294.3,0.15182]
[1768577179113,0.13604625,3296.9,3294.4,3.421]
[1768577179313,0.28775625,3296.9,3294.4,3.421]
[1768577179515,0.13604625,3296.8,3294.4,3.421]
[1768577179915,0.13604625,3296.7,3294.4,3.421]
[1768577180415,0.13604625,3296.7,3294.5,40.8]
[1768577180723,0.13604625,3296.1,3294.0,0.00225152]
[1768577180918,2.28460003,3296.1,3294.0,0.00225152]
[1768577181121,0.13745716,3295.7,3294.0,0.00225152]
[1768577181822,2.14855378,3296.0,3294.0,0.00225152]
[1768577182022,0.13745716,3296.0,3294.0,0.00225152]
[1768577184524,0.13745716,3296.0,3294.5,0.15181]
[1768577184829,0.13745716,3296.0,3294.1,3.426]
[1768577186023,0.13745716,3296.0,3294.2,0.15183]
[1768577186229,0.13745716,3296.0,3294.1,3.426]
[1768577186528,0.13745716,3296.5,3294.2,0.00190246]
[1768577187227,0.13745716,3296.5,3294.3,40.8]
[1768577187630,0.13745716,3296.5,3294.7,0.1518]
[1768577188217,0.13745716,3296.5,3294.8,0.1518]
[1768577189728,0.13745716,3296.5,3294.7,3.429]
[1768577189924,0.13464078,3296.3,3294.7,3.429]
[1768577190129,0.13464078,3296.1,3294.7,3.429]
[1768577190327,1.04885413,3296.0,3294.7,3.429]
[1768577190630,0.13464078,3295.8,3294.1,3.58283]
[1768577190832,0.13464078,3295.6,3294.1,3.58283]
[1768577191031,0.13464078,3295.6,3294.2,40.8]
[1768577191336,2.14855378,3296.5,3294.2,40.8]
[1768577191532,0.13464078,3296.4,3294.2,40.8]
[1768577191830,0.91441062,3296.3,3294.3,0.15182]
[1768577192130,0.13464078,3296.1,3294.3,0.15182]
[1768577192331,0.13464078,3295.9,3294.3,0.15182]
[1768577192532,0.13464078,3295.7,3294.2,40.8]
[1768577192831,0.91441062,3295.6,3294.2,40.8]
[1768577193031,0.91441062,3295.5,3294.2,40.8]
[1768577193228,2.14855378,3296.3,3294.1,3.431]
[1768577193425,0.91393551,3296.2,3294.4,0.15182]
[1768577193622,0.13464078,3296.3,3294.4,0.15182]
[1768577193623,0.91393551,3296.1,3294.4,0.15182]
[1768577193824,0.91393551,3296.0,3294.5,40.8]
[1768577194025,0.13464078,3296.3,3294.5,40.8]
[1768577194026,0.91393551,3295.9,3294.5,40.8]
[1768577194225,0.13464078,3296.3,3294.5,40.8]
[1768577194534,0.91400818,3296.2,3294.5,40.8]
[1768577194734,0.91400818,3296.1,3294.5,40.8]
[1768577195034,0.91400818,3296.0,3294.5,40.8]
[1768577195238,0.13464078,3296.3,3294.5,40.8]
[1768577195535,0.91386007,3296.2,3294.5,40.8]
[1768577195835,0.91386007,3296.1,3294.5,40.8]
[1768577196033,0.13464078,3296.9,3294.6,0.00295933]
[1768577196239,0.91401572,3296.8,3294.6,0.00295933]
[1768577196533,0.91401572,3296.7,3294.6,0.00295933]
[1768577196733,0.13464078,3296.5,3294.6,0.15181]
[1768577196934,0.28634078,3297.1,3294.8,0.1518]
[1768577197128,0.91356298,3297.0,3294.9,3.5928]
[1768577197328,0.91356298,3296.9,3294.9,3.5928]
[1768577197537,0.91356298,3296.8,3295.1,0.15179]
[1768577197739,0.13464078,3297.1,3295.1,0.15179]
[1768577197937,0.91359257,3297.0,3295.1,0.15179]
[1768577198140,0.13785465,3297.6,3295.4,0.15177]
[1768577198440,0.91343745,3297.5,3295.5,0.15177]
[1768577198640,0.91343745,3297.4,3295.5,0.15177]
[1768577198943,0.13785465,3297.6,3295.7,0.15176]
[1768577199135,0.13785465,3297.6,3295.8,3.59075]
[1768577199336,0.00321387,3297.6,3295.9,40.8]
[1768577199640,0.00321387,3297.6,3296.1,0.15174]
[1768577199835,0.00321387,3297.6,3296.3,0.15173]
[1768577200237,0.13464078,3298.7,3296.6,0.15172]
[1768577200536,0.15159,3299.4,3296.7,3.44]
[1768577200537,1.04581243,3298.6,3296.7,3.44]
[1768577200736,0.13464078,3298.4,3296.7,3.439]
[1768577201136,0.13464078,3298.9,3296.7,3.439]
[1768577201336,0.13776381,3298.9,3296.7,3.44241605]
[1768577201636,0.13776381,3298.9,3297.0,0.1517]
[1768577201829,0.00312303,3298.9,3297.0,0.1517]
[1768577202033,0.00312303,3298.9,3297.2,0.15169]
[1768577202638,0.00312303,3298.9,3297.3,3.437]
[1768577202834,0.13776381,3298.9,3297.1,3.437]
[1768577203144,0.13776381,3298.9,3296.7,0.00341605]
[1768577203145,0.13464078,3298.8,3296.7,0.00341605]
[1768577204940,0.13464078,3298.8,3296.8,40.8]